Cogmind - Beta 10 @@@ ROGUE MODE // 2020.09.18 @ 16:30:45 Player: Morgweiler Result: Destroyed by as-14620 with Assembled Heavy Rifle Performance ------------- Evolutions (1) 500 Regions Visited (3) 600 Robots Destroyed (11) 55 Value Destroyed (282) 282 Prototype IDs (0) 0 Alien Tech Used (0) 0 Bonus (-112) -112 TOTAL SCORE: 1325 Bonus ------- Friendly Fire -112 Cogmind --------- Core Integrity 0/400 Matter 300/300 Energy 100/100 System Corruption 0% Temperature Cool (0) Movement Core (550) Ox10 Location -9/Mines Parts ------- > --- POWER (1) -------- (None) > --- PROPULSION (2) --- (None) > --- UTILITY (4) ------ Large Storage Unit Large Storage Unit Signal Interpreter > --- WEAPON (2) ------- (None) > --- INVENTORY (16) --- Aluminum Leg Aluminum Leg Reclamation Unit Heavy Explosive Trap Peak State ------------ > --- POWER ------------ Improved Ion Engine > --- PROPULSION ------- Aluminum Leg Aluminum Leg > --- UTILITY ---------- Large Storage Unit Large Storage Unit Signal Interpreter Light Armor Plating > --- WEAPON ----------- Small Laser Plasma Cutter > --- INVENTORY -------- Aluminum Leg Aluminum Leg Reclamation Unit Heavy Explosive Trap Heavy Explosive Trap [Rating: 12] Favorites ----------- Power Improved Ion Engine Engine Improved Ion Engine Propulsion Aluminum Leg Leg Aluminum Leg Wheel Compact Wheel Utility Large Storage Unit Device Weight Redist. System Storage Large Storage Unit Processor Signal Interpreter Protection Light Armor Plating Weapon Light Assault Rifle Energy Gun Small Laser Energy Cannon Beam Cannon Ballistic Gun Light Assault Rifle Special Weapon Plasma Cutter Build | -11 -10 -9 -9 ------- Run | Scr Mat Mat Min Slots Evolved 2 | . . 2 . Power . | . . . . Propulsion . | . . . . Utility 2 | . . 2 . Weapon . | . . . . Parts Attached 21 | 6 7 6 2 Power 4 | 1 1 1 1 Engine 4 | 1 1 1 1 Core . | . . . . Reactor . | . . . . Propulsion 5 | 2 2 1 . Treads . | . . . . Leg 3 | . 2 1 . Wheel 2 | 2 . . . Hover . | . . . . Flight . | . . . . Utility 7 | 1 3 3 . Device 1 | . . 1 . Storage 4 | 1 2 1 . Processor 1 | . 1 . . Hackware . | . . . . Protection 1 | . . 1 . Artifact . | . . . . Weapon 5 | 2 1 1 1 Energy Gun 2 | 1 . 1 . Energy Cannon 1 | . 1 . . Ballistic Gun 1 | 1 . . . Ballistic Cannon . | . . . . Launcher . | . . . . Special Weapon 1 | . . . 1 Impact Weapon . | . . . . Slashing Weapon . | . . . . Piercing Weapon . | . . . . Special Melee Weapon . | . . . . Unidentified Prototypes . | . . . . Parts Lost 9 | . 1 2 6 Power 1 | . . . 1 Propulsion 2 | . . . 2 Utility 1 | . . . 1 Weapon 5 | . 1 2 2 Highest Loss Streak 6 | . 1 1 6 Average Slot Usage (%) 90 | . 91 92 87 Engine 11 | . 14 11 10 Leg 18 | . 11 22 20 Wheel 4 | . 16 . . Device 2 | . . 7 . Storage 20 | . 17 22 22 Processor 10 | . 9 11 11 Protection 4 | . . 2 10 Energy Gun 7 | . 7 4 10 Energy Cannon 1 | . . 3 . Ballistic Gun 6 | . 14 7 . Special Weapon 1 | . . . 2 Naked Turns . | . . . . Heaviest Build 44 | 10 38 43 44 Greatest Support 32 | 32 32 26 20 Greatest Overweight (x) 3 | 1 1 2 3 Average Overweight (x) 1 | . . 1 1 Largest Inventory Capacity 16 | 6 16 16 16 Average Capacity 14 | 5 11 16 16 Most Carried 6 | 2 5 4 6 Average Carried 3 | 1 3 2 4 Final Capacity 16 | 6 10 16 16 Final Carried 4 | 2 4 3 4 Class Distribution -------------------- 58% | Mutant 41% | Scavenger-Mutant Dominant Class ---------------- Mutant | -10/Materials Mutant | -9/Materials Scavenger-Mutant | -9/Mines Resources | -11 -10 -9 -9 ----------- Run | Scr Mat Mat Min Matter Collected 431 | 248 74 99 10 Remotely . | . . . . Salvage Created 514 | . 137 207 170 Parts 19 | . 7 8 4 Haulers Intercepted . | . . . . Recyclers Shooed . | . . . . Parts Field Recycled . | . . . . Retrieved Matter . | . . . . Parts Self-Destructed . | . . . . Prevented . | . . . . Kills | -11 -10 -9 -9 ------- Run | Scr Mat Mat Min Combat Hostiles Destroyed 8 | . 3 4 1 Guns 8 | . 3 4 1 Classes Destroyed 5 | . 2 1 2 Recycler 1 | . . . 1 Watcher 1 | . 1 . . Grunt 5 | . 3 2 . Sentry 2 | . . 2 . Assembled 1 | . . . 1 Thug 1 | . . . 1 Best Kill Streak 2 | . 2 2 1 Combat Bots Only 2 | . 2 2 1 Max Kills in Single Turn 1 | . 1 1 1 Gunslinging . | . . . . Exploded . | . . . . Melee . | . . . . Uniques/NPCs Destroyed . | . . . . Combat | -11 -10 -9 -9 -------- Run | Scr Mat Mat Min Damage Taken 1405 | . 179 402 824 Core 451 | . 44 98 309 Absorbed by Shields . | . . . . Core Remaining (%) 91 | 100 82 . . Volleys Fired 60 | . 17 32 11 Largest 2 | . 2 2 2 Hottest 80 | . 70 80 60 Shots Fired 87 | . 28 42 17 Gun 75 | . 28 36 11 Cannon 6 | . . 6 . Launcher . | . . . . Special 6 | . . . 6 Kinetic 45 | . 17 28 . Thermal 42 | . 11 14 17 Explosive . | . . . . Electromagnetic . | . . . . Robot Hit Streak 22 | . 13 22 4 Robot Miss Streak 7 | . 2 2 7 Penetration Max . | . . . . Secondary Targets . | . . . . Shots Hit Robots 66 | . 20 38 8 Core Hits 23 | . 7 10 6 Critical Hits 1 | . . 1 . Critical Kills . | . . . . Critical Parts Destroyed . | . . . . Melee Attacks . | . . . . Impact . | . . . . Slashing . | . . . . Piercing . | . . . . Sneak Attacks . | . . . . Combat Hostiles . | . . . . Follow-up Attacks . | . . . . Damage Inflicted 695 | . 201 378 116 Guns 565 | . 201 273 91 Cannons 105 | . . 105 . Explosions . | . . . . Melee . | . . . . Ramming 2 | . . . 2 Kinetic 283 | . 88 195 . Thermal 410 | . 113 183 114 Explosive . | . . . . Electromagnetic . | . . . . Impact . | . . . . Slashing . | . . . . Piercing . | . . . . Highest Corruption . | . . . . Average Corruption . | . . . . Corruption Purged . | . . . . Overload Shots . | . . . . Overflow Damage . | . . . . Projectiles . | . . . . Explosions . | . . . . Melee . | . . . . Knockbacks . | . . . . Impact . | . . . . Kinetic . | . . . . Secondary . | . . . . Self-Inflicted Damage . | . . . . Shots . | . . . . Rammed 3 | . . . 3 Targets Rammed 3 | . . . 3 Kicked . | . . . . Crushed . | . . . . Highest Temperature 213 | . 196 157 213 Average Temperature 76 | . 84 49 99 Received Heat Transfer 743 | . 96 147 500 Siege Activations . | . . . . Robots Corrupted . | . . . . Combat Hostiles . | . . . . Parts Fried . | . . . . Impact Corruptions . | . . . . Robots Melted . | . . . . Combat Hostiles . | . . . . Parts Melted 2 | . 1 1 . Heat Transferred 1004 | . 333 397 274 Parts Sabotaged . | . . . . Parts Stolen . | . . . . Parts Stripped . | . . . . Power Chain Reactions . | . . . . Missiles Intercepted . | . . . . Alert | -11 -10 -9 -9 ------- Run | Scr Mat Mat Min Peak Influence 142 | . 67 142 60 Initial 55 | . . 27 55 Average 54 | . 39 78 52 Maximum Alert Level . | . . . . Low Security (%) 100 | 100 100 100 100 Level 1 . | . . . . Level 2 . | . . . . Level 3 . | . . . . Level 4 . | . . . . Level 5 . | . . . . High Security . | . . . . Max Security . | . . . . Squads Dispatched 1 | . 1 . . Investigation 1 | . 1 . . Extermination . | . . . . Reinforcement . | . . . . Assault . | . . . . Garrison . | . . . . Intercept . | . . . . Construction Impeded . | . . . . Haulers Reinforced . | . . . . Stealth | -11 -10 -9 -9 --------- Run | Scr Mat Mat Min Distress Signals . | . . . . Communications Jammed . | . . . . Distress Signals . | . . . . Times Spotted 18 | . 3 7 8 Peak Tracking Total 8 | . 2 3 8 Tactical Retreats . | . . . . Traps | -11 -10 -9 -9 ------- Run | Scr Mat Mat Min Traps Triggered 1 | . 1 . . Indirectly . | . . . . Trap Hack Attempts . | . . . . Triggered . | . . . . Disarmed . | . . . . Reprogrammed . | . . . . Reused . | . . . . Traps Extracted . | . . . . Installed . | . . . . Triggered . | . . . . Machines | -11 -10 -9 -9 ---------- Run | Scr Mat Mat Min Machines Disabled . | . . . . Max in Single Turn . | . . . . Machines Sabotaged . | . . . . Garrisons Compromised . | . . . . Overloaded Fab Kills . | . . . . Fab Network Shutdowns . | . . . . Hacking | -11 -10 -9 -9 --------- Run | Scr Mat Mat Min Machines Accessed 5 | . 2 3 . Terminals 3 | . 2 1 . Fabricators . | . . . . Repair Stations 1 | . . 1 . Recycling Units . | . . . . Scanalyzers 1 | . . 1 . Garrison Access . | . . . . Total Hacks 9 | . 2 7 . Successful 6 | . . 6 . Failed 3 | . 2 1 . Catastrophic . | . . . . Database Lockouts . | . . . . Manual . | . . . . Terminals 3 | . 2 1 . Fabricators . | . . . . Repair Stations 2 | . . 2 . Recycling Units . | . . . . Scanalyzers 4 | . . 4 . Garrison Access . | . . . . Terminal Hacks . | . . . . Fabricator Hacks . | . . . . Repair Station Hacks 2 | . . 2 . Scan Component 1 | . . 1 . Repair 1 | . . 1 . Recycling Unit Hacks . | . . . . Scanalyzer 4 | . . 4 . Insert Component 2 | . . 2 . Analyze 2 | . . 2 . Garrison Access Hacks . | . . . . Unauthorized Hacks . | . . . . Terminals . | . . . . Fabricators . | . . . . Repair Stations . | . . . . Recycling Units . | . . . . Scanalyzers . | . . . . Garrison Access . | . . . . Data Cores Recovered . | . . . . Used . | . . . . Hacking Detections 4 | . 2 2 . Full Trace Events . | . . . . Feedback Events . | . . . . Feedback Blocked . | . . . . Robot Schematics Acquired . | . . . . Robots Built . | . . . . Matter . | . . . . Time . | . . . . Total Robot Build Rating . | . . . . Part Schematics Acquired 2 | . . 2 . Parts Built . | . . . . Matter . | . . . . Time . | . . . . Total Part Build Rating . | . . . . Parts Repaired 1 | . . 1 . Time 26 | . . 26 . Parts Recycled . | . . . . Recycled Matter . | . . . . Retrieved Matter . | . . . . Retrieved Components . | . . . . Parts Scanalyzed 2 | . . 2 . Part Schematics Acquired 2 | . . 2 . Parts Damaged 1 | . . 1 . Bothacking | -11 -10 -9 -9 ------------ Run | Scr Mat Mat Min Used RIF Installer . | . . . . Robots Hacked . | . . . . Non-combat . | . . . . Combat . | . . . . Robot Hacks Applied . | . . . . Relay Couplers Released . | . . . . Robots Rewired . | . . . . Allies Hacked . | . . . . Hacks Repelled . | . . . . Allies | -11 -10 -9 -9 -------- Run | Scr Mat Mat Min Total Allies . | . . . . Largest Group . | . . . . Highest-Rated Group . | . . . . Highest-Rated Ally . | . . . . Total Orders . | . . . . Ally Attacks . | . . . . Total Damage . | . . . . Kills . | . . . . Allies Corrupted . | . . . . Allies Melted . | . . . . Intel | -11 -10 -9 -9 ------- Run | Scr Mat Mat Min Robot Analysis Total . | . . . . Derelict Logs Recovered 1 | . . . 1 Drone Launches . | . . . . Drone Recoveries . | . . . . Exploration | -11 -10 -9 -9 ------------- Run | Scr Mat Mat Min Turns Passed 971 | 56 255 302 358 Spaces Moved 513 | 48 168 124 173 Core 5 | 5 . . . Treads . | . . . . Legs 381 | . 84 124 173 Wheels 127 | 43 84 . . Hover . | . . . . Flight . | . . . . Fastest Speed 50 | 50 100 150 150 Average Speed 144 | 95 114 159 175 Slowest Speed 210 | 100 150 180 210 Overloaded Moves . | . . . . Propulsion Burnouts . | . . . . Robots Hopped . | . . . . Cave-ins Triggered . | . . . . Exploration Rate (%) 23 | 4 33 10 47 Regions Visited 3 Branch Regions 1 Pre-discovered Areas . | . . . . Known Exits Taken 2 | . 1 1 . Unknown Exits Taken 1 | 1 . . . Scrap Searched 1 | . . . 1 Spaces Dug . | . . . . Terrain Destroyed . | . . . . Melee . | . . . . Projectile . | . . . . AOE . | . . . . Terrain Rammed . | . . . . Walls Destroyed . | . . . . Machines Disabled . | . . . . Actions | -11 -10 -9 -9 --------- Run | Scr Mat Mat Min Total 647 | 55 205 192 195 Wait 30 | . 5 24 1 Move 510 | 47 167 123 173 Hop . | . . . . Pick Up 12 | 2 5 2 3 Fast Attach 11 | 6 1 3 1 Attach 2 | . 1 1 . Detach 1 | . . 1 . Swap 8 | . 5 2 1 Drop 10 | . 4 4 2 Fire 60 | . 17 32 11 Melee . | . . . . Ram 2 | . . . 2 Kick 1 | . . . 1 Crush . | . . . . Escape Stasis . | . . . . Rewire . | . . . . Trap . | . . . . Miscellaneous . | . . . . Route ------- -11/Scrapyard -10/Materials -9/Materials -9/Mines History --------- Turn | Location | Event 2 | -11/Scrapyard | Met Revision 17 11 | -11/Scrapyard | Discovered new exit (range 16) 57 | -11/Scrapyard | Entered Materials 260 | -10/Materials | Discovered new exit (range 16) 311 | -10/Materials | Identified exit to Materials 312 | -10/Materials | Entered another Materials area 312 | -9/Materials | Evolved 2 slots: Utility x2 342 | -9/Materials | Build established: Mutant 549 | -9/Materials | Discovered new exit (range 9) 572 | -9/Materials | Repaired Aluminum Leg 591 | -9/Materials | Identified exit to Mines 614 | -9/Materials | Entered Mines 649 | -9/Mines | Found a hidden stash of uninstalled traps 650 | -9/Mines | Met a Derelict bent on vengeance 849 | -9/Mines | Build established: Scavenger-Mutant 884 | -9/Mines | Learned location of 1 exit from Materials 910 | -9/Mines | Assembled infested the area 963 | -9/Mines | Core integrity fell below 50% 970 | -9/Mines | Core integrity fell below 20% 972 | -9/Mines | Destroyed by as-14620 with Assembled Heavy Rifle Last Messages --------------- Data stored: Materials exits (x1). 00887_ T-07 Excavator is excavating. 00900_ U-05 Engineer lays Concrete. 00900_ T-07 Excavator is excavating. 00910_ ALERT: Infestation in the mines, dispatching Demolisher response squad. 00914_ 1F-XW8(g) destroyed. 00936_ Aluminum Leg destroyed. 00940_ Plasma Cutter destroyed. 00943_ as-42642 destroyed. 00945_ Lgt. Armor Plating destroyed. 00949_ Critical hit. 00949_ Sml. Laser destroyed. 00949_ U-05 Engineer lays Concrete. 00957_ R-06 Scavenger destroyed. 00960_ Slammed into as-92498. 00961_ Aluminum Leg destroyed. 00961_ Lgt. Ion Engine destroyed. 00962_ Slammed into as-92498. 00967_ Slammed into as-89102. Map ----- +----------------------------------------------------+ | #????# #???#### ?????????? | | ###### #?????## ## ?????????? | | # #?????# ##?? ???????????? | | # #?????# ##??? ????????????? | | # #####?????##% #???# #?????????????? | | #??????????##% #### #??????????????? | | #??????????## ## #??????????????? | | ####??????????# ##?????????????? | | ??????????????# % #?????????????? | | ??????????????# #?????????????? | | ??????????????# % #?????????????? | | ??????????????## ##?????????????? | | ???????????????## ! ##??????????????? | | ????????????????## ##!*#???????????????? | | ?????????????????## ##%=#???????????????? | | ??????????????????## ###!%##??????????????? | | ???????????????????#####*!=##?????????????? | | ?????????????????????##=%[= #?????????????? | | ?????????????????????# #?????????????? | | ?????????????????????# & ##?????????????? | | ????????????????????## #??????????????? | | ??????????????????### ##?????????????? | | ????????########### ##????????????? | | ????????# #????????????? | | ????????# %%aa #????????????? | | ?????????######### ##@a ##????????????? | | ?????????????????# ####aa#?????????????? | | ?????????????????# #??#aa######????????? | | ?????????????????# #??# #????????? | | ?????????????????# #?# % #????????? | | ?????????????????## #?###### #????????? | | ??????????????????## ##??????# #????????? | | ???????????????????####???????# #????????? | | ??????????????????????????????# #???????? | | ?????????????????????????????? #???????? | | ?????????????????????????????? #???????? | | ?????????????????????????????? #???????? | | ??????????????????????????????! ##???????? | | ?????????????????????????????$% ##????????? | | ????????????????????????????? ##?????????? | | ????????????????????????????? #???????????? | | ????????????????????????????? ????????????? | | ???????????????????????????? ????????????? | | ????????????????????????????##????????????? | | ??????????????????????????????????????????? | | ??????????????????????????????????????????? | | ??????????????????????????????????????????? | | ??????????????????????????????????????????? | | ??????????????????????????????????????????? | | ??????????????????????????????????????????? | +----------------------------------------------------+ Best States ------------- Heat Dissipation 28 Energy Generation 12 Energy Capacity 265 Matter Stores 300 Matter Capacity 300 Sight Range 16 Terrain Scan Density 10 Additional Mass Support 6 Armor Coverage 150 Evasion (%) 40 Item Schematics ----------------- Lgt. Ion Engine | -9/Materials | Scanalyzed Aluminum Leg | -9/Materials | Scanalyzed Robot Schematics ------------------ None Fabricated ------------ Nothing Alien Tech Used ----------------- None Achievements -------------- None Challenges ------------ None Game ------ Seed PrecisionHugeCompressor Manual? 0 Play Time 00:14:02 Cumulative 16.8 hours Start 2020.09.18 @ 16:19:31 End 2020.09.18 @ 16:30:45 Sessions 1 Manual Loads 0 Difficulty Rogue Special Mode None Game No. 17 Rogue 9 Adventurer 4 Explorer 4 Win Type - Total 0 Types 0/0/0/0/0/0/0/0/0 Lore% 17 Gallery% 22 Achievement% 17 Wizard Run 0 Options --------- ASCII 0 Keyboard 1 Movement Numpad Keybinds 0 Fullscreen 2 Font 18/SmallcapsGlow Map View 76x50 Tactical HUD 1 Map Filters NONE Filters NONE Steam 1 RUN: 3286b20d-eae9-405d-8d9a-f35ed1f3608d